Cogmind - Beta 16 @@@ ROGUE MODE // 2026.02.07 @ 10:34:04 Player: Imperator Result: Destroyed by Y-45 Defender with Beam Rifle Performance ------------- Evolutions (1) 500 Regions Visited (3) 600 Robots Destroyed (29) 145 Value Destroyed (573) 573 Prototype IDs (2) 40 Alien Tech Used (0) 0 Bonus (0) 0 TOTAL SCORE: 1858 Bonus ------- None Cogmind --------- Core Integrity 0/400 Matter 115/300 Energy 100/100 System Corruption 9% Temperature Cool (27) Movement Core (700) Ox13 Location -9/Storage Parts ------- > --- POWER (1) -------- (None) > --- PROPULSION (3) --- (None) > --- UTILITY (3) ------ High-capacity Storage Unit > --- WEAPON (2) ------- (None) > --- INVENTORY (20) --- Heavy Ion Engine Heavy Ion Engine Heavy Ion Engine Heavy Ion Engine Heavy Ion Engine Heavy Ion Engine Aluminum Leg Aluminum Leg Improved Aluminum Leg Improved Aluminum Leg Heat Sink Large Battery (200) Large Matter Pod (0) High-capacity Matter Pod (0) Shield Generator Shield Generator Improved Light Cannon Peak State ------------ > --- POWER ------------ Heavy Ion Engine > --- PROPULSION ------- Improved Aluminum Leg Improved Aluminum Leg Improved Aluminum Leg > --- UTILITY ---------- High-capacity Storage Unit Medium Armor Plating Shield Generator > --- WEAPON ----------- Improved Light Cannon Improved Light Cannon > --- INVENTORY -------- Light Ion Engine Light Ion Engine Heavy Ion Engine Heavy Ion Engine Heavy Ion Engine Heavy Ion Engine Heavy Ion Engine Heavy Ion Engine Aluminum Leg Improved Aluminum Leg Wheel Compact Wheel Heat Sink Large Battery Large Matter Pod High-capacity Matter Pod Visual Processing Unit Shield Generator Improved Medium Laser [Rating: 21] Favorites ----------- Power Light Ion Engine Engine Light Ion Engine Propulsion Improved Aluminum Leg Leg Improved Aluminum Leg Wheel Compact Wheel Flight Unit Flight Unit Utility High-capacity Storage Unit Device Shield Generator Storage High-capacity Storage Unit Processor Visual Processing Unit Protection Medium Armor Plating Weapon Improved Light Cannon Energy Gun Improved Medium Laser Ballistic Gun Assault Rifle Ballistic Cannon Improved Light Cannon Build | -11 -10 -9 -9 ------- Run | Yrd Mat Mat Sto Slots Evolved 2 | . . 2 . Power . | . . . . Propulsion 1 | . . 1 . Utility 1 | . . 1 . Weapon . | . . . . Parts Attached 33 | 6 11 5 11 Power 6 | 1 1 1 3 Engine 6 | 1 1 1 3 Core . | . . . . Reactor . | . . . . Propulsion 12 | 2 4 2 4 Treads . | . . . . Leg 7 | 2 2 2 1 Wheel 3 | . . . 3 Hover . | . . . . Flight 2 | . 2 . . Utility 9 | 1 3 2 3 Device 3 | . 2 1 . Storage 3 | 1 1 . 1 Processor 1 | . . . 1 Hackware . | . . . . Protection 2 | . . 1 1 Artifact . | . . . . Weapon 6 | 2 3 . 1 Energy Gun 2 | 1 . . 1 Energy Cannon . | . . . . Ballistic Gun 2 | 1 1 . . Ballistic Cannon 2 | . 2 . . Launcher . | . . . . Special Weapon . | . . . . Impact Weapon . | . . . . Slashing Weapon . | . . . . Piercing Weapon . | . . . . Special Melee Weapon . | . . . . Unidentified Prototypes 2 | . . . 2 Parts Lost 7 | . . . 7 Power 1 | . . . 1 Propulsion 3 | . . . 3 Utility 2 | . . . 2 Weapon 1 | . . . 1 Highest Loss Streak 6 | . . . 6 To Critical Strikes . | . . . . Average Backups 10 | 5 8 10 15 Power 2 | 1 1 1 4 Propulsion 3 | 3 3 3 4 Utility 4 | . 2 4 6 Weapon . | 1 . . . Tool/Special . | . . . . Unused Backups 15 | . 4 . 11 Power 6 | . . . 6 Propulsion 6 | . 4 . 2 Utility 3 | . . . 3 Weapon . | . . . . Tool/Special . | . . . . Average Slot Usage (%) 93 | . 96 96 87 Engine 12 | . 14 11 10 Leg 28 | . 26 33 25 Device 9 | . 12 11 4 Storage 12 | . 14 11 12 Protection 5 | . . 7 10 Energy Gun 2 | . 1 . 5 Ballistic Cannon 19 | . 22 22 12 Peak Build Rating 21 | 7 13 17 21 Average Rating 13 | 4 11 16 17 On Entrance 9 | . 7 13 17 Avg Prop Armor Cover (%) . | . . . . Naked Turns . | . . . . Heaviest Build 65 | 12 53 60 65 Greatest Support 39 | 20 26 39 39 Greatest Overweight (x) 15 | 1 2 1 15 Average Overweight (x) 1 | . 1 1 1 Largest Inventory Capacity 20 | 8 20 20 20 Average Capacity 17 | 7 16 20 20 Most Carried 20 | 8 9 13 20 Average Carried 10 | 5 7 10 15 Final Capacity 20 | 8 20 20 20 Final Carried 17 | 8 9 13 17 Class Distribution -------------------- 100% | Mutant Dominant Class ---------------- Mutant | -10/Materials Mutant | -9/Materials Mutant | -9/Storage Resources | -11 -10 -9 -9 ----------- Run | Yrd Mat Mat Sto Matter Collected 757 | 300 243 76 138 Remotely . | . . . . Salvage Created 680 | 137 245 142 156 Parts 45 | 6 19 15 5 Haulers Intercepted . | . . . . Recyclers Shooed 2 | . . . 2 Parts Field Recycled . | . . . . Retrieved Matter . | . . . . Parts Self-Destructed . | . . . . Prevented . | . . . . Parts Restored . | . . . . Kills | -11 -10 -9 -9 ------- Run | Yrd Mat Mat Sto Combat Hostiles Destroyed 19 | . 10 6 3 Guns 6 | . 3 . 3 Cannons 13 | . 7 6 . Classes Destroyed 8 | 3 3 2 . Worker 3 | 2 . . 1 Builder 1 | . . 1 . Tunneler 1 | 1 . . . Recycler 1 | 1 . . . Watcher 4 | . 3 1 . Swarmer 9 | . 6 3 . Grunt 8 | . 4 2 2 Sentry 2 | . . 1 1 Best Kill Streak 4 | 3 4 3 2 Combat Bots Only 3 | . 3 3 2 Max Kills in Single Turn 1 | 1 1 1 1 Gunslinging . | . . . . Exploded . | . . . . Melee . | . . . . Uniques/NPCs Destroyed . | . . . . Combat | -11 -10 -9 -9 -------- Run | Yrd Mat Mat Sto Hostile Shots Fired 225 | . 53 60 112 Missed 61 | . 15 17 29 Hits 164 | . 38 43 83 Melee 8 | . . . 8 Projectile 156 | . 38 43 75 Critical Strikes 3 | . . 1 2 Damage Taken 1769 | . 271 337 1161 Core 479 | . 67 48 364 Absorbed by Shields 207 | . 68 127 12 Core Remaining (%) 86 | 100 73 . . Volleys Fired 89 | 15 29 22 23 Largest 2 | 2 2 2 2 Hottest 89 | 70 70 66 89 Shots Fired 158 | 30 58 44 26 Gun 66 | 30 14 . 22 Cannon 92 | . 44 44 4 Launcher . | . . . . Special . | . . . . Kinetic 114 | 15 51 44 4 Thermal 44 | 15 7 . 22 Explosive . | . . . . Electromagnetic . | . . . . Robot Hit Streak 7 | 3 6 4 7 Robot Miss Streak 5 | 4 5 5 2 Penetration Max . | . . . . Secondary Targets . | . . . . Shots Hit Robots 74 | 16 24 17 17 Core Hits 31 | 5 13 7 6 Critical Kills . | . . . . Critical Parts Destroyed . | . . . . Critical Strikes 8 | 1 5 2 . Burn 1 | 1 . . . Blast 7 | . 5 2 . Melee Attacks . | . . . . Impact . | . . . . Slashing . | . . . . Piercing . | . . . . Sneak Attacks . | . . . . Combat Hostiles . | . . . . Follow-up Attacks . | . . . . Damage Inflicted 1362 | 197 497 390 278 Guns 489 | 197 55 . 237 Cannons 871 | . 441 390 40 Explosions . | . . . . Melee . | . . . . Ramming 2 | . 1 . 1 Kinetic 1011 | 97 484 390 40 Thermal 349 | 100 12 . 237 Explosive . | . . . . Electromagnetic . | . . . . Impact . | . . . . Slashing . | . . . . Piercing . | . . . . Highest Corruption 9 | . . . 9 Average Corruption 3 | . . . 3 Corruption Purged . | . . . . Corruption Blocked . | . . . . Effects 2 | . . . 2 Message Errors 1 | . . . 1 Parts Rejected 1 | . . . 1 Overload Shots . | . . . . Overflow Damage 14 | . 14 . . Projectiles 14 | . 14 . . Explosions . | . . . . Melee . | . . . . Knockbacks 7 | . 5 2 . Impact . | . . . . Kinetic 7 | . 5 2 . Secondary . | . . . . Self-Inflicted Damage . | . . . . Shots . | . . . . Rammed . | . . . . Targets Rammed 2 | . 1 . 1 Kicked 2 | . 1 . 1 Crushed . | . . . . Highest Temperature 357 | 81 48 46 357 Average Temperature 52 | 30 15 13 127 Received Heat Transfer 513 | . 34 73 406 Effects 4 | . . . 4 Energy Bleed 3 | . . . 3 Damage (minor) 1 | . . . 1 Siege Activations . | . . . . Martial Activations . | . . . . Shielding Activations . | . . . . Robots Disrupted . | . . . . Combat Hostiles . | . . . . Robots Corrupted . | . . . . Combat Hostiles . | . . . . Parts Fried . | . . . . Impact Corruptions . | . . . . Robots Melted . | . . . . Combat Hostiles . | . . . . Parts Melted 2 | 1 . . 1 Heat Transferred 925 | 370 37 . 518 Parts Sabotaged . | . . . . Parts Stolen . | . . . . Parts Stripped . | . . . . Power Chain Reactions . | . . . . Alert | -11 -10 -9 -9 ------- Run | Yrd Mat Mat Sto Maximum Alert Level . | . . . . Low Security (%) 100 | 100 100 100 100 Level 1 . | . . . . Level 2 . | . . . . Level 3 . | . . . . Level 4 . | . . . . Level 5 . | . . . . High Security . | . . . . Max Security . | . . . . Peak Influence 115 | 10 115 70 50 Initial 5 | . 3 . 5 Average 28 | 1 53 25 7 Influence Increases 582 | 20 282 176 104 Destroy 0b10 Robot/C 380 | . 200 120 60 Destroy 0b10 Robot/NC 50 | 20 15 10 5 Destroy Leader 98 | . 46 42 10 Successful Hack 14 | . . . 14 Disable Machine 15 | . 15 . . Destroy Structure 10 | . 6 4 . Lose Combat Pursuer 15 | . . . 15 Influence Decreases 582 | 15 287 161 119 Entered New Map 12 | . 2 . 10 Time Decay 479 | 15 214 161 89 Lost Part 20 | . . . 20 Purge Threat 71 | . 71 . . Squads Dispatched 2 | . . 2 . Investigation 1 | . . 1 . Extermination . | . . . . Reinforcement 1 | . . 1 . Assault . | . . . . Garrison . | . . . . Intercept . | . . . . Searches Triggered . | . . . . Construction Impeded . | . . . . Haulers Reinforced . | . . . . Active Scanning Responses . | . . . . Cargo Convoy Interrupts . | . . . . Stealth | -11 -10 -9 -9 --------- Run | Yrd Mat Mat Sto Distress Signals 4 | . 2 . 2 Communications Jammed . | . . . . Distress Signals . | . . . . Times Spotted 34 | . 15 8 11 Peak Tracking Total 6 | . 4 3 6 Tactical Retreats 1 | . . . 1 Traps | -11 -10 -9 -9 ------- Run | Yrd Mat Mat Sto Traps Triggered 2 | . . 1 1 Indirectly . | . . . . Trap Hack Attempts . | . . . . Triggered . | . . . . Disarmed . | . . . . Reprogrammed . | . . . . Reused . | . . . . Traps Extracted . | . . . . Installed . | . . . . Triggered . | . . . . Machines | -11 -10 -9 -9 ---------- Run | Yrd Mat Mat Sto Machines Disabled 1 | . 1 . . Max in Single Turn 1 | . 1 . . Machines Repaired . | . . . . Machines Dismantled . | . . . . Machines Sabotaged . | . . . . Overloaded Fab Kills . | . . . . Hacking | -11 -10 -9 -9 --------- Run | Yrd Mat Mat Sto Machines Accessed 5 | . 2 . 3 Terminals 5 | . 2 . 3 Fabricators . | . . . . Repair Stations . | . . . . Recycling Units . | . . . . Scanalyzers . | . . . . Garrison Access . | . . . . Total Hacks 10 | . 4 . 6 Successful 6 | . 2 . 4 Failed 4 | . 2 . 2 Catastrophic . | . . . . Database Lockouts . | . . . . Manual . | . . . . Terminals 10 | . 4 . 6 Fabricators . | . . . . Repair Stations . | . . . . Recycling Units . | . . . . Scanalyzers . | . . . . Garrison Access . | . . . . Terminal Hacks 6 | . 2 . 4 Open Door 1 | . . . 1 Alert Level 1 | . . . 1 Unreport Threat 1 | . 1 . . Locate Traps 1 | . 1 . . Recall Extermination 1 | . . . 1 Zone Layout 1 | . . . 1 Fabricator Hacks . | . . . . Repair Station Hacks . | . . . . Recycling Unit Hacks . | . . . . Scanalyzer . | . . . . Garrison Access Hacks . | . . . . Unauthorized Hacks . | . . . . Terminals . | . . . . Fabricators . | . . . . Repair Stations . | . . . . Recycling Units . | . . . . Scanalyzers . | . . . . Garrison Access . | . . . . Data Cores Recovered . | . . . . Used . | . . . . Hacking Detections 3 | . 1 . 2 Full Trace Events . | . . . . Feedback Events . | . . . . Feedback Blocked . | . . . . Robot Schematics Acquired . | . . . . Robots Built . | . . . . Authchips . | . . . . Time . | . . . . Total Robot Build Rating . | . . . . Part Schematics Acquired . | . . . . Parts Built . | . . . . Authchips . | . . . . Time . | . . . . Total Part Build Rating . | . . . . Part Studies Acquired . | . . . . Parts Repaired . | . . . . Time . | . . . . Parts Recycled . | . . . . Recycled Matter . | . . . . Retrieved Matter . | . . . . Retrieved Components . | . . . . Parts Scanalyzed . | . . . . Part Schematics Acquired . | . . . . Parts Damaged . | . . . . Bothacking | -11 -10 -9 -9 ------------ Run | Yrd Mat Mat Sto Used RIF Installer . | . . . . Robots Hacked . | . . . . Non-combat . | . . . . Combat . | . . . . Robot Hacks Applied . | . . . . Relay Couplers Released . | . . . . Fabnet Peak Effective % . | . . . . Robots Rewired . | . . . . Allies Hacked . | . . . . Hacks Repelled . | . . . . Allies | -11 -10 -9 -9 -------- Run | Yrd Mat Mat Sto Total Allies . | . . . . Largest Group . | . . . . Highest-Rated Group . | . . . . Highest-Rated Ally . | . . . . Total Orders . | . . . . Ally Attacks . | . . . . Total Damage . | . . . . Kills . | . . . . Allies Corrupted . | . . . . Allies Melted . | . . . . Intel | -11 -10 -9 -9 ------- Run | Yrd Mat Mat Sto Active Infowar (turns) 84 | . 1 . 83 Optics 83 | . . . 83 Terrain 1 | . 1 . . Robot Analysis Total . | . . . . Derelict Logs Recovered . | . . . . Drone Launches . | . . . . Drone Recoveries . | . . . . Exploration | -11 -10 -9 -9 ------------- Run | Yrd Mat Mat Sto Turns Passed 1470 | 131 545 382 412 Spaces Moved 605 | 66 204 159 176 Core 27 | 24 . . 3 Treads . | . . . . Legs 524 | 42 194 159 129 Wheels 44 | . . . 44 Hover . | . . . . Flight 10 | . 10 . . Fastest Speed 37 | 50 37 190 120 Average Speed 184 | 99 206 190 184 Slowest Speed 800 | 120 260 190 800 Overloaded Moves . | . . . . Propulsion Burnouts . | . . . . Robots Hopped . | . . . . Potential Cave-ins . | . . . . Cave-ins Triggered . | . . . . Exploration Rate (%) 21 | 4 40 10 31 Regions Visited 3 Branch Regions 1 Pre-discovered Areas . | . . . . Known Exits Taken . | . . . . Unknown Exits Taken 3 | 1 1 1 . Scrap Searched . | . . . . Spaces Dug . | . . . . Terrain Destroyed 7 | . 4 3 . Melee . | . . . . Projectile 7 | . 4 3 . AOE . | . . . . Terrain Rammed . | . . . . Walls Destroyed . | . . . . Machines Disabled . | . . . . Actions | -11 -10 -9 -9 --------- Run | Yrd Mat Mat Sto Total 821 | 101 279 197 244 Wait 3 | . . . 3 Move 602 | 65 203 158 176 Hop . | . . . . Pick Up 49 | 14 17 7 11 Fast Attach 3 | 1 2 . . Attach 29 | 5 8 5 11 Detach 13 | . 4 3 6 Swap 3 | . 1 1 1 Drop 23 | 1 14 1 7 Fire 89 | 15 29 22 23 Melee . | . . . . Ram . | . . . . Kick 2 | . 1 . 1 Crush . | . . . . Escape Stasis 5 | . . . 5 Rewire . | . . . . Trap . | . . . . Miscellaneous . | . . . . Route ------- -11/Scrapyard -10/Materials -9/Materials -9/Storage History --------- Turn | Location | Event 4 | -11/Scrapyard | Discovered new exit (range 16) 132 | -11/Scrapyard | Entered Materials 302 | -10/Materials | Build established: Mutant 484 | -10/Materials | Discovered new exit (range 12) 677 | -10/Materials | Entered another Materials area 677 | -9/Materials | Evolved 2 slots: Propulsion x1, Utility x1 749 | -9/Materials | Discovered new exit (range 7) 1059 | -9/Materials | Entered Storage 1436 | -9/Storage | Core integrity fell below 50% 1467 | -9/Storage | Core integrity fell below 20% 1471 | -9/Storage | Destroyed by Y-45 Defender with Beam Rifle Last Messages --------------- R-06 Scavenger collects Aluminum Leg. Acquired 44 matter. Acquired Aluminum Leg. Dropped Imp. Aluminum Leg. Dropped Aluminum Leg. K-01 Serf cleans the Component Storage. Wheel destroyed. Acquired Com. Wheel. Com. Wheel destroyed. System corrupted by crushing effect (+2). Imp. Medium Laser destroyed. System corrupted: Hrd. Light Armor Plating rejected. Com. Wheel destroyed. G-34 Mercenary destroyed. Hvy. Ion Engine destroyed. System corrupted by crushing effect (+5). Visual Processing Unit destroyed. System corrupted by crushing effect (+2). X HZTMCH1YUECXZ6EA8|ITWG/QGRQAYLMFM0XA4 Critical hit (Burn: +37). Map ----- +----------------------------------------------------+ | ????# """ ###+#########???????????????????????? | | ????# R" # #???????????????????????? | | ????# """ # """ """ #???????????????????????? | | ????# # """ """ #???????????????????????? | | ????########## """ """ #???????????????????????? | | ?????????????# """ """ #???????????????????????? | | ?????????????# """ """ ###?????????????????????? | | ?????????????# + #?????????????????????? | | ?????????????############# #?????????????????????? | | ??????????????????# ### ##????????????????????? | | ??????????????????# ## """ ?????????????? | | ??????????????????# / """ ?????????????? | | ??????????????????# ####### ""??????????? | | ??????????????????## ##???????!!! Y"??????????? | | ???????????????????# #?????????! ? ""??????????? | | ???????????????????# #?????????? ??? ??????????? | | ???????????????????# #???????????##?????????????? | | ??????????????"##### #??????????????????????????? | | ??????????????" #??????????????????????????? | | ??????????????" #??????????????????????????? | | ??????????????"#T##+###########??????????????????? | | ???????????????#?# #??????????????????? | | ?????????????????#^""""" #??????????????????? | | ?????????????????# """"" g^ #??????????????????? | | ?????????????????# """""b% ^Y ##?????????????????? | | ?????????????????# !@ #?????????????????? | | ?????????????????###############?????????????????? | | | | | | | | | | | | | | | | | | | | | | | | | | | | | | | | | | | | | | | | | | | | | | | +----------------------------------------------------+ Best States ------------- Heat Dissipation 28 Energy Generation 14 Energy Capacity 480 Matter Stores 297 Matter Capacity 300 Sight Range 18 Terrain Scan Density 10 Armor Coverage 375 Evasion (%) 55 Item Schematics ----------------- None Robot Schematics ------------------ None Fabricated ------------ Nothing Repaired ---------- Nothing Studied --------- None Alien Tech Used ----------------- None Achievements -------------- None Challenges ------------ None Game ------ Seed DamperProjectionHumpback Manual? 0 Play Time 00:23:09 Cumulative 4.6 hours Start 2026.02.07 @ 10:14:37 End 2026.02.07 @ 10:34:04 Sessions 1 Manual Loads 0 Difficulty Rogue Special Mode None Game No. 8 Rogue 8 Adventurer 0 Explorer 0 Win Type - Total 0 Types 0/0/0/0/0/0/0/0/0/0 Lore% 0 Gallery% 10 Achievement% 6 Wizard Run 0 Options --------- Layout 0 ASCII 0 Keyboard 0 Movement Mouse Keybinds 0 Fullscreen 1 Font 24/Smallcaps Map View 113x50 Zoom Use 0% Tactical HUD 0 Map Filters NONE Filters NONE Steam 1 RUN: f579ead6-316f-42e1-a055-2ce064271e2b